Cogmind - Beta 14 @@@ ROGUE MODE // 2025.03.19 @ 21:54:07 Player: LightKnight Result: Destroyed by B-99 Colossus with Multirail Performance ------------- Evolutions (9) 4500 Regions Visited (27) 5400 Robots Destroyed (26) 130 Value Destroyed (1195) 1195 Prototype IDs (64) 1280 Alien Tech Used (2) 400 Bonus (6918) 6918 TOTAL SCORE: 19823 Bonus ------- High Alert Combat Kills 24 Entered DSFs 1000 Aligned with FarCom 300 Met Imprinter 300 Met Zhirov 300 Met Warlord at Base 500 MAIN.C Attacked Warlord 500 Met Warlord at Research 2000 Met Warlord at Command 2000 Friendly Fire -6 Cogmind --------- Core Integrity 0/1600 Matter 300/300 Energy 100/100 System Corruption 1% Temperature Cool (0) Movement Core (50) Location -1/Command Parts ------- > --- POWER (2) -------- (None) > --- PROPULSION (7) --- (None) > --- UTILITY (14) ----- Experimental Optical Array 0b10 Decoder Chip [Generic] Graphene Brace Improved Hacking Suite Advanced Hacking Suite > --- WEAPON (3) ------- (None) > --- INVENTORY (5) ---- Advanced Terrain Scan Processor Propulsion Shielding Transdimensional Reconstructor Enhanced Nova Cannon Ionic Axe Peak State ------------ > --- POWER ------------ Micro Antimatter Reactor Light Quantum Reactor > --- PROPULSION ------- Field Propulsion Drive Cooled Nuclear Pulse Thruster Cooled Nuclear Pulse Thruster Cooled Nuclear Pulse Thruster Impulse Thruster Array Cooled Q-thruster > --- UTILITY ---------- Power Amplifier Advanced Power Amplifier Gravity Neutralizer Experimental Optical Array 0b10 Decoder Chip [Generic] Makeshift Transmission Jammer Makeshift ECM Suite Advanced Reaction Control System Graphene Brace Hacking Suite Improved Hacking Suite Advanced Hacking Suite Advanced Hacking Suite Experimental System Shield > --- WEAPON ----------- Ionic Axe > --- INVENTORY -------- Advanced Terrain Scan Processor Propulsion Shielding Transdimensional Reconstructor Enhanced Nova Cannon [Rating: 160] Favorites ----------- Power Light Fission Core Engine Ion Engine Power Core Light Fission Core Reactor Light Quantum Reactor Propulsion Improved VTOL Module Treads Light Treads Leg Aluminum Leg Flight Unit Improved VTOL Module Utility Advanced Signal Interpreter Device Makeshift ECM Suite Storage Medium Storage Unit Processor Advanced Signal Interpreter Hackware Experimental System Shield Protection Propulsion Shielding Weapon Shock Maul Energy Gun EM Pulse Gun Energy Cannon Heavy Ion Cannon Ballistic Gun Assault Rifle Launcher Improved Grenade Launcher Special Weapon RU-N14's Throwing Claymores v3 Impact Weapon Shock Maul Slashing Weapon Makeshift Sword Build | -11 -10 -10 -10 -9 -8 -7 -7 -6 -6 -6 -6 -5 -5 -5 -5 -5 -4 -4 -4 -4 -4 -3 -3 -3 -2 -1 -1 ------- Run | Yrd Mat Min Exi Min Mat Fac DSF Fac Low Low Zio Pro Fac Upp Upp War Pro Fac Upp Upp Zhi Pro Res DSF Res Acc Com Slots Evolved 18 | . . . . . 4 2 . 2 . . . . 2 . . . . 2 . . . . 2 . 2 2 . Power 1 | . . . . . . . . . . . . . . . . . . . . . . . 1 . . . . Propulsion 4 | . . . . . 1 1 . . . . . . . . . . . 2 . . . . . . . . . Utility 12 | . . . . . 2 1 . 2 . . . . 2 . . . . . . . . . 1 . 2 2 . Weapon 1 | . . . . . 1 . . . . . . . . . . . . . . . . . . . . . . Parts Attached 105 | 1 . . 2 7 21 2 . 13 . 1 2 2 3 1 . 3 1 7 2 3 8 . 2 . 13 4 7 Power 7 | . . . . 1 1 1 . 1 . . . . . . . . . . . . . . . . 3 . . Engine 3 | . . . . 1 1 1 . . . . . . . . . . . . . . . . . . . . . Core 2 | . . . . . . . . 1 . . . . . . . . . . . . . . . . 1 . . Reactor 2 | . . . . . . . . . . . . . . . . . . . . . . . . . 2 . . Propulsion 27 | . . . . 2 10 1 . 1 . . . . . . . . . 4 . . 4 . . . 3 2 . Treads 2 | . . . . . 2 . . . . . . . . . . . . . . . . . . . . . . Leg 7 | . . . . 2 5 . . . . . . . . . . . . . . . . . . . . . . Wheel . | . . . . . . . . . . . . . . . . . . . . . . . . . . . . Hover . | . . . . . . . . . . . . . . . . . . . . . . . . . . . . Flight 18 | . . . . . 3 1 . 1 . . . . . . . . . 4 . . 4 . . . 3 2 . Utility 50 | . . . 2 . 5 . . 9 . 1 2 2 3 1 . . 1 3 2 1 4 . 2 . 4 2 6 Device 28 | . . . . . 3 . . 5 . . 1 2 2 1 . . 1 2 1 1 2 . . . 3 1 3 Storage 3 | . . . 1 . 1 . . . . . . . . . . . . . . . 1 . . . . . . Processor 7 | . . . 1 . . . . 2 . 1 . . . . . . . . 1 . . . 1 . . . 1 Hackware 7 | . . . . . 1 . . . . . 1 . 1 . . . . . . . . . . . 1 1 2 Protection 5 | . . . . . . . . 2 . . . . . . . . . 1 . . 1 . 1 . . . . Artifact . | . . . . . . . . . . . . . . . . . . . . . . . . . . . . Weapon 21 | 1 . . . 4 5 . . 2 . . . . . . . 3 . . . 2 . . . . 3 . 1 Energy Gun 7 | 1 . . . 3 1 . . . . . . . . . . 2 . . . . . . . . . . . Energy Cannon 5 | . . . . 1 3 . . . . . . . . . . . . . . . . . . . . . 1 Ballistic Gun . | . . . . . . . . . . . . . . . . . . . . . . . . . . . . Ballistic Cannon . | . . . . . . . . . . . . . . . . . . . . . . . . . . . . Launcher 1 | . . . . . 1 . . . . . . . . . . . . . . . . . . . . . . Special Weapon 2 | . . . . . . . . . . . . . . . . 1 . . . 1 . . . . . . . Impact Weapon 3 | . . . . . . . . 2 . . . . . . . . . . . . . . . . 1 . . Slashing Weapon 3 | . . . . . . . . . . . . . . . . . . . . 1 . . . . 2 . . Piercing Weapon . | . . . . . . . . . . . . . . . . . . . . . . . . . . . . Special Melee Weapon . | . . . . . . . . . . . . . . . . . . . . . . . . . . . . Unidentified Prototypes 16 | . . . . . 1 . . 2 . . 1 . . . . 3 . . 1 1 4 . . . 3 . . Parts Lost 30 | . . . . 2 9 . . . . . . . . . . . . . . . . . . . . . 19 Power 3 | . . . . 1 . . . . . . . . . . . . . . . . . . . . . . 2 Propulsion 9 | . . . . . 3 . . . . . . . . . . . . . . . . . . . . . 6 Utility 12 | . . . . . 1 . . . . . . . . . . . . . . . . . . . . . 11 Weapon 6 | . . . . 1 5 . . . . . . . . . . . . . . . . . . . . . . Highest Loss Streak 17 | . . . . 2 5 . . . . . . . . . . . . . . . . . . . . . 17 To Critical Strikes . | . . . . . . . . . . . . . . . . . . . . . . . . . . . . Average Slot Usage (%) 86 | . 85 85 95 99 88 31 38 60 86 86 86 86 88 88 88 88 88 85 81 83 87 90 82 86 79 80 83 Engine 4 | . 14 14 14 13 8 5 7 1 . . . . . . . . . . . . . . . . . . . Core 2 | . . . . . . . . 4 6 6 6 6 5 5 5 5 5 5 5 5 5 5 4 4 3 . . Leg 9 | . 28 28 28 28 23 . . . . . . . . . . . . . . . . . . . . . . Flight 16 | . . . . . . 25 30 26 26 26 26 26 23 23 23 23 23 28 25 25 28 30 27 27 25 23 22 Device 14 | . . . . . 6 . . 12 20 20 20 20 23 23 23 23 29 20 20 20 22 25 18 18 16 15 23 Storage 4 | . 14 14 14 14 12 . . . . . . . . . . . . . . . . . . . . . . Processor 10 | . . . 9 14 8 . . 5 13 19 17 13 11 11 11 11 11 10 13 15 12 10 13 13 12 11 7 Hackware 5 | . . . . . 2 . . . . . 1 6 11 11 11 11 11 10 10 10 10 10 9 9 8 15 17 Protection 2 | . . . . . . . . 5 13 6 6 6 5 5 5 5 . 5 1 . . . . 4 4 3 . Energy Gun 3 | . 14 14 14 13 5 . . . . . . . . . . . . . . . . . . . . . . Energy Cannon 2 | . . . . 6 16 . . . . . . . . . . . . . . . . . . . . . . Ballistic Gun 2 | . 14 14 14 7 . . . . . . . . . . . . . . . . . . . . . . . Impact Weapon 2 | . . . . . . . . 2 6 6 6 6 5 5 5 5 5 5 5 5 5 5 4 4 2 . . Peak Build Rating 160 | 6 6 6 12 19 35 18 18 51 48 52 59 61 72 72 70 80 74 88 90 108 116 112 116 113 144 148 160 Average Rating 61 | 6 6 6 10 15 28 16 18 37 48 51 53 59 70 70 70 70 74 83 89 93 106 111 112 113 125 143 152 On Entrance 61 | 6 6 6 6 12 19 12 18 18 48 48 52 59 59 72 70 70 71 74 88 90 96 112 112 113 113 137 148 Naked Turns 35 | . . . . . 35 . . . . . . . . . . . . . . . . . . . . . . Heaviest Build 49 | 14 14 14 19 24 43 9 9 16 16 16 21 21 25 25 21 21 25 29 29 27 32 32 32 32 47 48 49 Greatest Support 69 | 20 20 20 20 25 42 20 20 32 21 21 21 21 33 33 21 21 33 29 29 29 38 38 44 50 57 48 69 Greatest Overweight (x) 2 | . . . . . 1 2 . . . . . . . . . . . . . . . . . . . 1 1 Average Overweight (x) . | . . . . . . . . . . . . . . . . . . . . . . . . . . . . Largest Inventory Capacity 10 | 8 8 8 10 10 10 5 5 5 5 5 5 5 5 5 5 5 5 5 5 5 5 5 5 5 5 5 5 Average Capacity 6 | 8 8 8 8 10 9 5 5 5 5 5 5 5 5 5 5 5 5 5 5 5 5 5 5 5 5 5 5 Most Carried 10 | 6 8 8 9 10 10 4 3 5 5 5 5 5 4 4 4 5 5 5 5 5 5 5 5 4 5 5 5 Average Carried 6 | 6 7 8 8 9 9 3 3 4 5 4 4 5 3 4 4 4 5 4 5 5 4 4 4 4 4 4 3 Final Capacity 10 | 8 8 8 10 10 5 5 5 5 5 5 5 5 5 5 5 5 5 5 5 5 5 5 5 5 5 5 5 Final Carried 9 | 6 8 8 9 9 4 3 3 5 5 5 5 5 4 4 4 5 5 5 5 5 5 5 4 4 5 4 5 Class Distribution -------------------- 26% | Hacker-Ninja 24% | Mutant 12% | Skirmisher 9% | Ninja 9% | Hacker-Sprinter 8% | Sprinter 4% | Derelict-Sprinter 4% | Wizard-Sprinter Dominant Class ---------------- Mutant | -10/Materials Mutant | -10/Mines Mutant | -10/Exiles Mutant | -9/Mines Skirmisher | -8/Materials Mutant | -7/Factory Sprinter | -7/DSF Sprinter | -6/Factory Sprinter | -6/Lower Caves Ninja | -6/Lower Caves Ninja | -6/Zion Ninja | -5/Proximity Caves Hacker-Sprinter | -5/Factory Hacker-Ninja | -5/Upper Caves Hacker-Ninja | -5/Upper Caves Hacker-Ninja | -5/Warlord Hacker-Ninja | -4/Proximity Caves Hacker-Sprinter | -4/Factory Hacker-Ninja | -4/Upper Caves Hacker-Ninja | -4/Upper Caves Hacker-Ninja | -4/Zhirov Hacker-Ninja | -3/Proximity Caves Derelict-Sprinter | -3/Research Derelict-Sprinter | -3/DSF Derelict-Sprinter | -2/Research Hacker-Sprinter | -1/Access Wizard-Sprinter | -1/Command Resources | -11 -10 -10 -10 -9 -8 -7 -7 -6 -6 -6 -6 -5 -5 -5 -5 -5 -4 -4 -4 -4 -4 -3 -3 -3 -2 -1 -1 ----------- Run | Yrd Mat Min Exi Min Mat Fac DSF Fac Low Low Zio Pro Fac Upp Upp War Pro Fac Upp Upp Zhi Pro Res DSF Res Acc Com Matter Collected 1301 | 200 35 6 . 94 240 . . 50 35 44 51 . . 42 18 . 5 . 63 59 133 . . . 150 . 76 Remotely . | . . . . . . . . . . . . . . . . . . . . . . . . . . . . Salvage Created 1440 | . 142 . . 159 719 . . . . . . . . . . . 5 . . . 332 . . . 36 . 47 Parts 52 | . 7 . . 9 32 . . . . . . . . . . . . . . . . . . . . . 4 Haulers Intercepted . | . . . . . . . . . . . . . . . . . . . . . . . . . . . . Recyclers Shooed . | . . . . . . . . . . . . . . . . . . . . . . . . . . . . Parts Field Recycled . | . . . . . . . . . . . . . . . . . . . . . . . . . . . . Retrieved Matter . | . . . . . . . . . . . . . . . . . . . . . . . . . . . . Parts Self-Destructed 15 | . . . . . . . . . . . . . . . 2 . . . . 6 . 7 . . . . . Prevented 5 | . . . . . . . . . . . . . . . 1 . . . . 4 . . . . . . . Kills | -11 -10 -10 -10 -9 -8 -7 -7 -6 -6 -6 -6 -5 -5 -5 -5 -5 -4 -4 -4 -4 -4 -3 -3 -3 -2 -1 -1 ------- Run | Yrd Mat Min Exi Min Mat Fac DSF Fac Low Low Zio Pro Fac Upp Upp War Pro Fac Upp Upp Zhi Pro Res DSF Res Acc Com Combat Hostiles Destroyed 24 | . 3 . . 5 15 . . . . . . . . . . . 1 . . . . . . . . . . Guns 11 | . 3 . . 3 5 . . . . . . . . . . . . . . . . . . . . . . Cannons 10 | . . . . 2 8 . . . . . . . . . . . . . . . . . . . . . . AOE 1 | . . . . . 1 . . . . . . . . . . . . . . . . . . . . . . Classes Destroyed 7 | . 1 . . 1 4 . . . . . . . . . . . 1 . . . . . . . . . . Drone 1 | . . . . . . . . . . . . . . . . . 1 . . . . . . . . . . Watcher 4 | . . . . . 2 . . . . . . . . . . . . . . . . . . . 1 . 1 Swarmer 3 | . . . . . 3 . . . . . . . . . . . . . . . . . . . . . . Grunt 14 | . 3 . . 3 8 . . . . . . . . . . . . . . . . . . . . . . Sentry 3 | . . . . . 3 . . . . . . . . . . . . . . . . . . . . . . Hunter 1 | . . . . . 1 . . . . . . . . . . . . . . . . . . . . . . Assembled 2 | . . . . 2 . . . . . . . . . . . . . . . . . . . . . . . Best Kill Streak 5 | . 2 . . 3 5 . . . . . . . . . . . 1 . . . . . . . 1 . 1 Combat Bots Only 5 | . 2 . . 3 5 . . . . . . . . . . . 1 . . . . . . . . . . Max Kills in Single Turn 2 | . 1 . . 1 2 . . . . . . . . . . . 1 . . . . . . . 1 . 1 Gunslinging . | . . . . . . . . . . . . . . . . . . . . . . . . . . . . Exploded 1 | . . . . . 1 . . . . . . . . . . . . . . . . . . . . . . Melee . | . . . . . . . . . . . . . . . . . . . . . . . . . . . . Uniques/NPCs Destroyed . | . . . . . . . . . . . . . . . . . . . . . . . . . . . . Combat | -11 -10 -10 -10 -9 -8 -7 -7 -6 -6 -6 -6 -5 -5 -5 -5 -5 -4 -4 -4 -4 -4 -3 -3 -3 -2 -1 -1 -------- Run | Yrd Mat Min Exi Min Mat Fac DSF Fac Low Low Zio Pro Fac Upp Upp War Pro Fac Upp Upp Zhi Pro Res DSF Res Acc Com Hostile Shots Fired 421 | . 3 4 . 27 117 . 3 9 . . . . . 6 1 6 . 7 10 . . 39 . 1 . . 188 Missed 166 | . . 1 . 8 32 . 2 8 . . . . . 4 1 5 . 5 6 . . 31 . 1 . . 62 Damage Taken 4967 | . 40 43 . 311 1494 . 19 10 . . . . . 36 62 23 . 24 75 . . 190 . . . . 2640 Core 2207 | . 10 9 . 71 339 . . . . . . . . 18 . 23 . 24 17 . . 90 . . . . 1606 Absorbed by Shields 575 | . . . . . . . . . . . . . . . . . . . . . . . . . . . 575 Redirected to Shielding 12 | . . . . . . . . . . . . . . . 12 . . . . . . . . . . . . Regen/Repaired (Parts) 17 | . . . . . . . . . . . . . . . . 17 . . . . . . . . . . . Core Remaining (%) 87 | 100 . . . 64 38 . 100 . . . . 100 . . . . 95 . . . . 88 . 100 100 . . Volleys Fired 76 | . 10 2 . 14 44 . . . . . . . . . . . . . . . . . . . . . 6 Largest 3 | . 2 2 . 2 3 . . . . . . . . . . . . . . . . . . . . . 1 Hottest 178 | . 60 60 . 105 178 . . . . . . . . . . . . . . . . . . . . . 120 Shots Fired 166 | . 20 4 . 28 108 . . . . . . . . . . . . . . . . . . . . . 6 Gun 71 | . 20 4 . 25 22 . . . . . . . . . . . . . . . . . . . . . . Cannon 93 | . . . . 3 84 . . . . . . . . . . . . . . . . . . . . . 6 Launcher 2 | . . . . . 2 . . . . . . . . . . . . . . . . . . . . . . Special . | . . . . . . . . . . . . . . . . . . . . . . . . . . . . Kinetic 23 | . 10 2 . 11 . . . . . . . . . . . . . . . . . . . . . . . Thermal 87 | . . . . 16 65 . . . . . . . . . . . . . . . . . . . . . 6 Explosive 2 | . . . . . 2 . . . . . . . . . . . . . . . . . . . . . . Electromagnetic 54 | . 10 2 . 1 41 . . . . . . . . . . . . . . . . . . . . . . Robot Hit Streak 13 | . 7 2 . 6 13 . . . . . . . . . . . . . . . . . . . . . . Robot Miss Streak 4 | . 4 1 . 2 3 . . . . . . . . . . . . . . . . . . . . . . Penetration Max . | . . . . . . . . . . . . . . . . . . . . . . . . . . . . Secondary Targets . | . . . . . . . . . . . . . . . . . . . . . . . . . . . . Shots Hit Robots 122 | . 13 2 . 18 76 . . . . . . . . . . . 1 . . . 9 . . . 1 . 2 Core Hits 49 | . 6 . . 9 32 . . . . . . . . . . . . . . . 1 . . . . . 1 Critical Kills . | . . . . . . . . . . . . . . . . . . . . . . . . . . . . Critical Parts Destroyed 1 | . . . . . . . . . . . . . . . . . . . . . 1 . . . . . . Critical Strikes 3 | . . . . . . . . . . . . . . . . . . . . . 2 . . . . . 1 Smash 2 | . . . . . . . . . . . . . . . . . . . . . 2 . . . . . . Sever 1 | . . . . . . . . . . . . . . . . . . . . . . . . . . . 1 Melee Attacks 101 | . . . . . . . . 2 2 . 1 4 . 4 7 1 6 12 4 17 9 14 . . 8 2 8 Impact 68 | . . . . . . . . 2 2 . 1 4 . 4 7 1 6 12 4 2 7 10 . . 6 . . Slashing 33 | . . . . . . . . . . . . . . . . . . . . 15 2 4 . . 2 2 8 Piercing . | . . . . . . . . . . . . . . . . . . . . . . . . . . . . Sneak Attacks . | . . . . . . . . . . . . . . . . . . . . . . . . . . . . Combat Hostiles . | . . . . . . . . . . . . . . . . . . . . . . . . . . . . Follow-up Attacks 4 | . . . . . . . . . . . . . . . . . . . . . 2 . . . 2 . . Damage Inflicted 4067 | . 222 32 . 242 2251 . . . . . . . . . . . 51 . . . 1087 . . . 65 . 117 Guns 673 | . 166 32 . 188 287 . . . . . . . . . . . . . . . . . . . . . . Cannons 1610 | . . . . 54 1556 . . . . . . . . . . . . . . . . . . . . . . Explosions 413 | . 55 . . . 358 . . . . . . . . . . . . . . . . . . . . . . Melee 1320 | . . . . . . . . . . . . . . . . . 51 . . . 1087 . . . 65 . 117 Ramming 51 | . 1 . . . 50 . . . . . . . . . . . . . . . . . . . . . . Kinetic 180 | . 56 11 . 113 . . . . . . . . . . . . . . . . . . . . . . . Thermal 1357 | . 55 . . 129 1173 . . . . . . . . . . . . . . . . . . . . . . Explosive 325 | . . . . . 325 . . . . . . . . . . . . . . . . . . . . . . Electromagnetic 834 | . 110 21 . . 703 . . . . . . . . . . . . . . . . . . . . . . Impact 1046 | . . . . . . . . . . . . . . . . . 51 . . . 930 . . . 65 . . Slashing 274 | . . . . . . . . . . . . . . . . . . . . . 157 . . . . . 117 Piercing . | . . . . . . . . . . . . . . . . . . . . . . . . . . . . Highest Corruption 1 | . . . . . . . . . . . . . . . . . . . . . . . . . . . 1 Average Corruption 1 | . . . . . . . . . . . . . . . . . . . . . . . . . . . 1 Corruption Purged . | . . . . . . . . . . . . . . . . . . . . . . . . . . . . Corruption Blocked . | . . . . . . . . . . . . . . . . . . . . . . . . . . . . Overload Shots . | . . . . . . . . . . . . . . . . . . . . . . . . . . . . Overflow Damage 652 | . . . . . 39 . . . . . . . . . . . 21 . . . 551 . . . 41 . . Projectiles 23 | . . . . . 23 . . . . . . . . . . . . . . . . . . . . . . Explosions 16 | . . . . . 16 . . . . . . . . . . . . . . . . . . . . . . Melee 613 | . . . . . . . . . . . . . . . . . 21 . . . 551 . . . 41 . . Knockbacks . | . . . . . . . . . . . . . . . . . . . . . . . . . . . . Impact . | . . . . . . . . . . . . . . . . . . . . . . . . . . . . Kinetic . | . . . . . . . . . . . . . . . . . . . . . . . . . . . . Secondary . | . . . . . . . . . . . . . . . . . . . . . . . . . . . . Self-Inflicted Damage 268 | . . . . . 268 . . . . . . . . . . . . . . . . . . . . . . Shots 6 | . . . . . 6 . . . . . . . . . . . . . . . . . . . . . . Rammed 2 | . . . . . 2 . . . . . . . . . . . . . . . . . . . . . . Targets Rammed 15 | . 1 . . . 14 . . . . . . . . . . . . . . . . . . . . . . Kicked 13 | . 1 . . . 12 . . . . . . . . . . . . . . . . . . . . . . Crushed . | . . . . . . . . . . . . . . . . . . . . . . . . . . . . Highest Temperature 306 | . 12 . . 70 256 . . 306 . . . . . . . . . . . . . . . . 31 . 110 Average Temperature 67 | . 6 . . 33 80 . . 161 . . . . . . . . . . . . . . . . 12 . 46 Received Heat Transfer 522 | . 24 . . 141 315 . . 6 . . . . . . . 12 . . . . . . . . . . 24 Effects 1 | . . . . . 1 . . . . . . . . . . . . . . . . . . . . . . Energy Bleed 1 | . . . . . 1 . . . . . . . . . . . . . . . . . . . . . . Siege Activations . | . . . . . . . . . . . . . . . . . . . . . . . . . . . . Robots Corrupted 4 | . . . . . 1 . . . . . . . . . . . 1 . . . 1 . . . 1 . . Combat Hostiles 3 | . . . . . 1 . . . . . . . . . . . 1 . . . 1 . . . . . . Parts Fried 5 | . . . . . 3 . . . . . . . . . . . 1 . . . 1 . . . . . . Impact Corruptions 18 | . . . . . . . . . . . . . . . . . 1 . . . 15 . . . 2 . . Robots Melted . | . . . . . . . . . . . . . . . . . . . . . . . . . . . . Combat Hostiles . | . . . . . . . . . . . . . . . . . . . . . . . . . . . . Parts Melted 2 | . . . . 1 1 . . . . . . . . . . . . . . . . . . . . . . Heat Transferred 2114 | . 112 . . 249 1753 . . . . . . . . . . . . . . . . . . . . . . Parts Sabotaged . | . . . . . . . . . . . . . . . . . . . . . . . . . . . . Parts Stolen . | . . . . . . . . . . . . . . . . . . . . . . . . . . . . Parts Stripped . | . . . . . . . . . . . . . . . . . . . . . . . . . . . . Power Chain Reactions 2 | . 1 . . . 1 . . . . . . . . . . . . . . . . . . . . . . Alert | -11 -10 -10 -10 -9 -8 -7 -7 -6 -6 -6 -6 -5 -5 -5 -5 -5 -4 -4 -4 -4 -4 -3 -3 -3 -2 -1 -1 ------- Run | Yrd Mat Min Exi Min Mat Fac DSF Fac Low Low Zio Pro Fac Upp Upp War Pro Fac Upp Upp Zhi Pro Res DSF Res Acc Com Peak Influence 656 | . 88 34 . 61 425 109 106 120 . . . . 327 . . . . 445 . . . . 63 77 157 126 656 Initial 302 | . . 34 . . . 109 76 55 . . . . 300 . . . . 302 . . . . 60 47 42 93 80 Average 147 | . 39 34 . 51 158 109 86 77 . . . . 318 . . . . 365 . . . . 60 60 110 107 278 Maximum Alert Level 2 | . . . . . 2 . . . . . . . 1 . . . . 2 . . . . . . . . 2 Low Security (%) 74 | 100 100 100 . 100 62 100 100 100 . . . . . . . . . . . . . . 100 100 100 100 52 Level 1 16 | . . . . . 23 . . . . . . . 100 . . . . 76 . . . . . . . . 21 Level 2 9 | . . . . . 13 . . . . . . . . . . . . 23 . . . . . . . . 25 Level 3 . | . . . . . . . . . . . . . . . . . . . . . . . . . . . . Level 4 . | . . . . . . . . . . . . . . . . . . . . . . . . . . . . Level 5 . | . . . . . . . . . . . . . . . . . . . . . . . . . . . . High Security . | . . . . . . . . . . . . . . . . . . . . . . . . . . . . Max Security . | . . . . . . . . . . . . . . . . . . . . . . . . . . . . Squads Dispatched 15 | . 1 . . . 3 . 2 . . . . . . . . . . . . . . . . 1 2 . 6 Investigation 2 | . . . . . 1 . . . . . . . . . . . . . . . . . . . . . 1 Extermination . | . . . . . . . . . . . . . . . . . . . . . . . . . . . . Reinforcement 13 | . 1 . . . 2 . 2 . . . . . . . . . . . . . . . . 1 2 . 5 Assault . | . . . . . . . . . . . . . . . . . . . . . . . . . . . . Garrison . | . . . . . . . . . . . . . . . . . . . . . . . . . . . . Intercept . | . . . . . . . . . . . . . . . . . . . . . . . . . . . . Searches Triggered . | . . . . . . . . . . . . . . . . . . . . . . . . . . . . Construction Impeded 1 | . . . . . 1 . . . . . . . . . . . . . . . . . . . . . . Haulers Reinforced 1 | . . . . . . . . . . . . . . . . . . . . . . . . . 1 . . Active Scanning Responses . | . . . . . . . . . . . . . . . . . . . . . . . . . . . . Cargo Convoy Interrupts . | . . . . . . . . . . . . . . . . . . . . . . . . . . . . Stealth | -11 -10 -10 -10 -9 -8 -7 -7 -6 -6 -6 -6 -5 -5 -5 -5 -5 -4 -4 -4 -4 -4 -3 -3 -3 -2 -1 -1 --------- Run | Yrd Mat Min Exi Min Mat Fac DSF Fac Low Low Zio Pro Fac Upp Upp War Pro Fac Upp Upp Zhi Pro Res DSF Res Acc Com Distress Signals 12 | . . . . . 4 . . . . . . . . . . . . 1 . . . . . . 5 . 2 Communications Jammed 17 | . . . . . 2 . . . . . . . . . . . 3 3 . . . . . . . . 9 Distress Signals 14 | . . . . . 2 . . . . . . . . . . . . 3 . . . . . . . . 9 Times Spotted 165 | . 8 3 . 10 32 . 3 2 3 . . 2 1 7 1 16 3 10 3 . . 15 . 1 7 1 37 Peak Tracking Total 18 | . 3 1 . 13 7 . 2 1 3 . . 1 . 6 4 15 1 6 2 . . 7 . 1 6 1 18 Tactical Retreats 22 | . . . . 1 4 . 2 . 1 . . . . 2 1 . . 2 2 . . 4 . 1 . . 2 Traps | -11 -10 -10 -10 -9 -8 -7 -7 -6 -6 -6 -6 -5 -5 -5 -5 -5 -4 -4 -4 -4 -4 -3 -3 -3 -2 -1 -1 ------- Run | Yrd Mat Min Exi Min Mat Fac DSF Fac Low Low Zio Pro Fac Upp Upp War Pro Fac Upp Upp Zhi Pro Res DSF Res Acc Com Traps Triggered 22 | . . . . 1 1 . 3 . . . . . . . . . . . . . . . . 2 2 1 12 Indirectly . | . . . . . . . . . . . . . . . . . . . . . . . . . . . . Trap Hack Attempts . | . . . . . . . . . . . . . . . . . . . . . . . . . . . . Triggered . | . . . . . . . . . . . . . . . . . . . . . . . . . . . . Disarmed . | . . . . . . . . . . . . . . . . . . . . . . . . . . . . Reprogrammed . | . . . . . . . . . . . . . . . . . . . . . . . . . . . . Reused . | . . . . . . . . . . . . . . . . . . . . . . . . . . . . Traps Extracted . | . . . . . . . . . . . . . . . . . . . . . . . . . . . . Installed . | . . . . . . . . . . . . . . . . . . . . . . . . . . . . Triggered 5 | . . . . . . . . . . . . . . . 1 3 . . 1 . . . . . . . . Machines | -11 -10 -10 -10 -9 -8 -7 -7 -6 -6 -6 -6 -5 -5 -5 -5 -5 -4 -4 -4 -4 -4 -3 -3 -3 -2 -1 -1 ---------- Run | Yrd Mat Min Exi Min Mat Fac DSF Fac Low Low Zio Pro Fac Upp Upp War Pro Fac Upp Upp Zhi Pro Res DSF Res Acc Com Machines Disabled 7 | . . . . . 4 . . . . . . . . . . . . . . 1 . . . . . . 2 Max in Single Turn 2 | . . . . . 2 . . . . . . . . . . . . . . 1 . . . . . . 2 Phase Generator 1 | . . . . . . . . . . . . . . . . . . . . . . . . . . . 1 Machines Repaired . | . . . . . . . . . . . . . . . . . . . . . . . . . . . . Machines Dismantled . | . . . . . . . . . . . . . . . . . . . . . . . . . . . . Machines Sabotaged . | . . . . . . . . . . . . . . . . . . . . . . . . . . . . Overloaded Fab Kills . | . . . . . . . . . . . . . . . . . . . . . . . . . . . . Hacking | -11 -10 -10 -10 -9 -8 -7 -7 -6 -6 -6 -6 -5 -5 -5 -5 -5 -4 -4 -4 -4 -4 -3 -3 -3 -2 -1 -1 --------- Run | Yrd Mat Min Exi Min Mat Fac DSF Fac Low Low Zio Pro Fac Upp Upp War Pro Fac Upp Upp Zhi Pro Res DSF Res Acc Com Machines Accessed 50 | . 3 . 2 1 7 1 . 4 . . 1 . 2 1 . 5 . 4 . 1 4 . 1 . . 5 8 Terminals 33 | . 2 . . . 7 1 . 4 . . . . 2 . . . . 3 . . . . 1 . . 5 8 Fabricators . | . . . . . . . . . . . . . . . . . . . . . . . . . . . . Repair Stations . | . . . . . . . . . . . . . . . . . . . . . . . . . . . . Recycling Units 1 | . 1 . . . . . . . . . . . . . . . . . . . . . . . . . . Scanalyzers . | . . . . . . . . . . . . . . . . . . . . . . . . . . . . Garrison Access 1 | . . . . . . . . . . . . . . . . . . 1 . . . . . . . . . Total Hacks 110 | . 9 . 4 1 17 2 . 9 . . 3 . 3 1 . 8 . 11 . 1 17 . 1 . . 6 17 Successful 72 | . . . 4 1 7 1 . 4 . . 3 . 2 1 . 8 . 4 . 1 17 . 1 . . 6 12 Failed 38 | . 9 . . . 10 1 . 5 . . . . 1 . . . . 7 . . . . . . . . 5 Catastrophic 6 | . . . . . 2 . . 2 . . . . . . . . . 2 . . . . . . . . . Database Lockouts . | . . . . . . . . . . . . . . . . . . . . . . . . . . . . Manual 41 | . 6 . 1 . 13 . . 5 . . . . . . . . . 8 . 1 . . . . . . 7 Terminals 72 | . 7 . . . 17 2 . 9 . . . . 3 . . . . 10 . . . . 1 . . 6 17 Fabricators . | . . . . . . . . . . . . . . . . . . . . . . . . . . . . Repair Stations . | . . . . . . . . . . . . . . . . . . . . . . . . . . . . Recycling Units 2 | . 2 . . . . . . . . . . . . . . . . . . . . . . . . . . Scanalyzers . | . . . . . . . . . . . . . . . . . . . . . . . . . . . . Garrison Access 1 | . . . . . . . . . . . . . . . . . . 1 . . . . . . . . . Terminal Hacks 60 | . . . 4 1 3 1 . 4 . . 3 . 2 1 . 8 . 2 . 1 17 . 1 . . 6 6 Record 15 | . . . 3 . 1 . . . . . . . . . . 6 . . . . 5 . . . . . . Part Schematic 7 | . . . . . . . . . . . 3 . . . . . . . . . 4 . . . . . . Robot Schematic 1 | . . . . . . . . . . . . . 1 . . . . . . . . . . . . . . Robot Analysis 5 | . . . . . . . . . . . . . . . . . . . . . 4 . . . . . 1 Prototype ID Bank 9 | . . . . . . . . 1 . . . . 1 . . . . . . . 4 . . . . 1 2 Open Door 8 | . . . . 1 . . . . . . . . . 1 . 2 . . . 1 . . . . . 3 . Open DSF 3 | . . . . . . 1 . 1 . . . . . . . . . . . . . . 1 . . . . Level Access Points 2 | . . . . . . . . . . . . . . . . . . . . . . . . . . 1 1 Branch Access Points 4 | . . . . . 1 . . 1 . . . . . . . . . 1 . . . . . . . 1 . Terminal Index 1 | . . . . . 1 . . . . . . . . . . . . . . . . . . . . . . Scanalyzer Index 1 | . . . . . . . . . . . . . . . . . . . . . . . . . . . 1 Locate Traps 2 | . . . . . . . . 1 . . . . . . . . . 1 . . . . . . . . . Derelict Proto ID Bank 1 | . . . 1 . . . . . . . . . . . . . . . . . . . . . . . . Disengage Seal 1 | . . . . . . . . . . . . . . . . . . . . . . . . . . . 1 Fabricator Hacks . | . . . . . . . . . . . . . . . . . . . . . . . . . . . . Repair Station Hacks . | . . . . . . . . . . . . . . . . . . . . . . . . . . . . Recycling Unit Hacks . | . . . . . . . . . . . . . . . . . . . . . . . . . . . . Scanalyzer . | . . . . . . . . . . . . . . . . . . . . . . . . . . . . Garrison Access Hacks . | . . . . . . . . . . . . . . . . . . . . . . . . . . . . Unauthorized Hacks 12 | . . . . . 4 . . . . . . . . . . . . 2 . . . . . . . . 6 Terminals 12 | . . . . . 4 . . . . . . . . . . . . 2 . . . . . . . . 6 Assimilate 3 | . . . . . . . . . . . . . . . . . . . . . . . . . . . 3 Botnet 9 | . . . . . 4 . . . . . . . . . . . . 2 . . . . . . . . 3 Fabricators . | . . . . . . . . . . . . . . . . . . . . . . . . . . . . Repair Stations . | . . . . . . . . . . . . . . . . . . . . . . . . . . . . Recycling Units . | . . . . . . . . . . . . . . . . . . . . . . . . . . . . Scanalyzers . | . . . . . . . . . . . . . . . . . . . . . . . . . . . . Garrison Access . | . . . . . . . . . . . . . . . . . . . . . . . . . . . . Data Cores Recovered . | . . . . . . . . . . . . . . . . . . . . . . . . . . . . Used . | . . . . . . . . . . . . . . . . . . . . . . . . . . . . Hacking Detections 25 | . 3 . . . 7 . . 2 . . . . . . . . . 3 . . . . . . . 3 7 Full Trace Events . | . . . . . . . . . . . . . . . . . . . . . . . . . . . . Feedback Events . | . . . . . . . . . . . . . . . . . . . . . . . . . . . . Feedback Blocked . | . . . . . . . . . . . . . . . . . . . . . . . . . . . . Robot Schematics Acquired 5 | . . . . . . . . . . . 4 . 1 . . . . . . . . . . . . . . Robots Built . | . . . . . . . . . . . . . . . . . . . . . . . . . . . . Authchips . | . . . . . . . . . . . . . . . . . . . . . . . . . . . . Time . | . . . . . . . . . . . . . . . . . . . . . . . . . . . . Total Robot Build Rating . | . . . . . . . . . . . . . . . . . . . . . . . . . . . . Part Schematics Acquired 19 | . . . . . . . . . . . 15 . . . . . . . . . 4 . . . . . . Parts Built . | . . . . . . . . . . . . . . . . . . . . . . . . . . . . Authchips . | . . . . . . . . . . . . . . . . . . . . . . . . . . . . Time . | . . . . . . . . . . . . . . . . . . . . . . . . . . . . Total Part Build Rating . | . . . . . . . . . . . . . . . . . . . . . . . . . . . . Parts Repaired . | . . . . . . . . . . . . . . . . . . . . . . . . . . . . Time . | . . . . . . . . . . . . . . . . . . . . . . . . . . . . Parts Recycled . | . . . . . . . . . . . . . . . . . . . . . . . . . . . . Recycled Matter . | . . . . . . . . . . . . . . . . . . . . . . . . . . . . Retrieved Matter . | . . . . . . . . . . . . . . . . . . . . . . . . . . . . Retrieved Components . | . . . . . . . . . . . . . . . . . . . . . . . . . . . . Parts Scanalyzed . | . . . . . . . . . . . . . . . . . . . . . . . . . . . . Part Schematics Acquired . | . . . . . . . . . . . . . . . . . . . . . . . . . . . . Parts Damaged . | . . . . . . . . . . . . . . . . . . . . . . . . . . . . Bothacking | -11 -10 -10 -10 -9 -8 -7 -7 -6 -6 -6 -6 -5 -5 -5 -5 -5 -4 -4 -4 -4 -4 -3 -3 -3 -2 -1 -1 ------------ Run | Yrd Mat Min Exi Min Mat Fac DSF Fac Low Low Zio Pro Fac Upp Upp War Pro Fac Upp Upp Zhi Pro Res DSF Res Acc Com Used RIF Installer . | . . . . . . . . . . . . . . . . . . . . . . . . . . . . Robots Hacked . | . . . . . . . . . . . . . . . . . . . . . . . . . . . . Non-combat . | . . . . . . . . . . . . . . . . . . . . . . . . . . . . Combat . | . . . . . . . . . . . . . . . . . . . . . . . . . . . . Robot Hacks Applied . | . . . . . . . . . . . . . . . . . . . . . . . . . . . . Relay Couplers Released . | . . . . . . . . . . . . . . . . . . . . . . . . . . . . Fabnet Peak Effective % . | . . . . . . . . . . . . . . . . . . . . . . . . . . . . Robots Rewired . | . . . . . . . . . . . . . . . . . . . . . . . . . . . . Allies Hacked . | . . . . . . . . . . . . . . . . . . . . . . . . . . . . Hacks Repelled . | . . . . . . . . . . . . . . . . . . . . . . . . . . . . Allies | -11 -10 -10 -10 -9 -8 -7 -7 -6 -6 -6 -6 -5 -5 -5 -5 -5 -4 -4 -4 -4 -4 -3 -3 -3 -2 -1 -1 -------- Run | Yrd Mat Min Exi Min Mat Fac DSF Fac Low Low Zio Pro Fac Upp Upp War Pro Fac Upp Upp Zhi Pro Res DSF Res Acc Com Total Allies 3 | . . . . . . . . . . . . . . . . . . . . . . . . . . . 3 Largest Group 3 | . . . . . . . . . . . . . . . . . . . . . . . . . . . 3 Highest-Rated Group 135 | . . . . . . . . . . . . . . . . . . . . . . . . . . . 135 Highest-Rated Ally 45 | . . . . . . . . . . . . . . . . . . . . . . . . . . . 45 Total Orders 1 | . . . . . . . . . . . . . . . . . . . . . . . . . . . 1 STAY 1 | . . . . . . . . . . . . . . . . . . . . . . . . . . . 1 Ally Attacks . | . . . . . . . . . . . . . . . . . . . . . . . . . . . . Total Damage . | . . . . . . . . . . . . . . . . . . . . . . . . . . . . Kills . | . . . . . . . . . . . . . . . . . . . . . . . . . . . . Allies Corrupted . | . . . . . . . . . . . . . . . . . . . . . . . . . . . . Allies Melted . | . . . . . . . . . . . . . . . . . . . . . . . . . . . . Intel | -11 -10 -10 -10 -9 -8 -7 -7 -6 -6 -6 -6 -5 -5 -5 -5 -5 -4 -4 -4 -4 -4 -3 -3 -3 -2 -1 -1 ------- Run | Yrd Mat Min Exi Min Mat Fac DSF Fac Low Low Zio Pro Fac Upp Upp War Pro Fac Upp Upp Zhi Pro Res DSF Res Acc Com Robot Analysis Total 5 | . . . . . . . . . . . . . . . . . . . . . 4 . . . . . 1 Derelict Logs Recovered 12 | . . 1 . . . . . . 1 2 2 1 . 2 2 . . . 1 . . . . . . . . Drone Launches . | . . . . . . . . . . . . . . . . . . . . . . . . . . . . Drone Recoveries . | . . . . . . . . . . . . . . . . . . . . . . . . . . . . Decoded 0b10 Intel 22 | . . . . . . . . . . . . . . . . . . . . . . . 1 1 8 2 10 Traps 2 | . . . . . . . . . . . . . . . . . . . . . . . . 1 . . 1 Emergency Access 2 | . . . . . . . . . . . . . . . . . . . . . . . 1 . . . 1 Items 13 | . . . . . . . . . . . . . . . . . . . . . . . . . 8 1 4 Machines 2 | . . . . . . . . . . . . . . . . . . . . . . . . . . . 2 Patrols 1 | . . . . . . . . . . . . . . . . . . . . . . . . . . . 1 Guards 2 | . . . . . . . . . . . . . . . . . . . . . . . . . . 1 1 Exploration | -11 -10 -10 -10 -9 -8 -7 -7 -6 -6 -6 -6 -5 -5 -5 -5 -5 -4 -4 -4 -4 -4 -3 -3 -3 -2 -1 -1 ------------- Run | Yrd Mat Min Exi Min Mat Fac DSF Fac Low Low Zio Pro Fac Upp Upp War Pro Fac Upp Upp Zhi Pro Res DSF Res Acc Com Turns Passed 5841 | 2 191 64 568 438 865 48 56 229 174 201 244 123 33 163 250 201 191 215 127 177 102 381 46 57 250 68 377 Spaces Moved 12130 | 1 124 44 471 197 559 133 125 664 622 722 867 375 104 552 848 474 474 445 310 462 156 872 125 159 958 255 1032 Core 75 | . . . . . 66 6 . . . . . . . . . . . . . . . . . . . . 3 Treads 11 | . . . . . 11 . . . . . . . . . . . . . . . . . . . . . . Legs 1258 | 1 124 44 471 197 421 . . . . . . . . . . . . . . . . . . . . . . Wheels . | . . . . . . . . . . . . . . . . . . . . . . . . . . . . Hover . | . . . . . . . . . . . . . . . . . . . . . . . . . . . . Flight 10786 | . . . . . 61 127 125 664 622 722 867 375 104 552 848 474 474 445 310 462 156 872 125 159 958 255 1029 Fastest Speed 6 | 120 120 120 120 120 29 26 26 26 27 27 27 27 27 27 27 27 27 25 28 28 25 26 23 16 6 22 6 Average Speed 36 | 120 120 120 120 120 111 32 26 26 27 27 27 27 27 27 27 27 27 26 28 28 27 26 25 22 21 22 21 Slowest Speed 240 | 120 120 120 120 120 240 150 26 27 27 27 27 27 27 27 27 27 27 28 28 28 28 26 26 23 25 97 82 Overloaded Moves 42 | . . . . . . . . . . . . . . . . . . . . . . . . 6 5 . 31 Propulsion Burnouts . | . . . . . . . . . . . . . . . . . . . . . . . . . . . . Robots Hopped 91 | . . . . . 5 3 4 12 . . . . . . . 1 . 8 . . . . . 1 30 5 22 Cave-ins Triggered 1 | . . . . . . . . . . . . . . . 1 . . . . . . . . . . . . Exploration Rate (%) 50 | 2 34 21 70 54 41 4 88 20 80 85 87 53 7 79 84 89 68 15 59 55 61 88 6 84 26 10 41 Regions Visited 27 Branch Regions 16 Pre-discovered Areas 8 | . . . . . . . . . . 1 2 . . 1 . 1 . . . . 3 . . . . . . Known Exits Taken 18 | . . . . . . 1 . 1 1 1 1 1 1 1 1 . 1 1 1 1 1 1 1 . 1 1 . Unknown Exits Taken 7 | 1 1 1 1 1 1 . . . . . . . . . . 1 . . . . . . . . . . . Scrap Searched 23 | . . . . . . . . . 2 3 3 3 . 2 1 . . . 2 3 . 4 . . . . . Spaces Dug 69 | . . . . . 1 . . 2 2 . . 4 . 4 7 1 2 12 4 15 . 10 . . 1 1 3 Terrain Destroyed 214 | . 3 . . 1 79 . . 2 2 . . 4 . 4 7 1 2 12 4 15 . 10 . . 1 1 66 Melee 68 | . . . . . . . . 2 2 . . 4 . 4 7 1 2 12 4 15 . 10 . . 1 1 3 Projectile 14 | . . . . 1 12 . . . . . . . . . . . . . . . . . . . . . 1 AOE 132 | . 3 . . . 67 . . . . . . . . . . . . . . . . . . . . . 62 Terrain Rammed . | . . . . . . . . . . . . . . . . . . . . . . . . . . . . Walls Destroyed . | . . . . . . . . . . . . . . . . . . . . . . . . . . . . Machines Disabled . | . . . . . . . . . . . . . . . . . . . . . . . . . . . . Actions | -11 -10 -10 -10 -9 -8 -7 -7 -6 -6 -6 -6 -5 -5 -5 -5 -5 -4 -4 -4 -4 -4 -3 -3 -3 -2 -1 -1 --------- Run | Yrd Mat Min Exi Min Mat Fac DSF Fac Low Low Zio Pro Fac Upp Upp War Pro Fac Upp Upp Zhi Pro Res DSF Res Acc Com Total 13134 | 1 148 51 474 373 693 132 144 699 623 728 875 387 108 556 854 545 523 513 340 491 200 1006 138 178 955 255 1144 Wait 669 | . 8 6 . 142 41 . . 24 . . . 7 . . . 62 43 48 22 9 19 122 11 14 . . 91 Move 11944 | . 123 43 470 196 548 126 117 641 621 721 866 374 103 551 846 472 473 430 309 461 155 871 124 156 911 244 992 Hop 67 | . . . . . 5 3 3 10 . . . . . . . . . 6 . . . . . 1 16 5 18 Pick Up 40 | . 4 . 1 7 11 . . 3 . 2 2 . 1 . . . . 3 . . 2 1 . . 2 . 1 Fast Attach 58 | . . . 1 . 8 1 . 11 . 1 1 . . . . 3 . 2 2 2 8 . . . 11 3 4 Attach 23 | . . . . 3 5 1 . . . . . . 3 . . . . 4 . . 1 . 2 . . 1 3 Detach 15 | . . . . . . . . 1 . 1 1 . 1 . . 1 . 2 1 . 1 . 1 . . . 5 Swap 26 | 1 . . 1 4 8 . . 2 . . 1 2 . 1 . . 1 1 1 1 . . . . 2 . . Drop 59 | . 2 . 1 7 9 . . 5 . 3 3 . . . . 6 . 5 1 2 7 1 . . 7 . . Fire 76 | . 10 2 . 14 44 . . . . . . . . . . . . . . . . . . . . . 6 Melee 92 | . . . . . . . . 2 2 . 1 4 . 4 7 1 6 12 4 16 7 10 . . 6 2 8 Ram 2 | . . . . . 2 . . . . . . . . . . . . . . . . . . . . . . Kick 13 | . 1 . . . 12 . . . . . . . . . . . . . . . . . . . . . . Crush . | . . . . . . . . . . . . . . . . . . . . . . . . . . . . Escape Stasis 48 | . . . . . . . 24 . . . . . . . 1 . . . . . . . . 7 . . 16 Rewire 1 | . . . . . . 1 . . . . . . . . . . . . . . . . . . . . . Trap . | . . . . . . . . . . . . . . . . . . . . . . . . . . . . Miscellaneous 1 | . . . . . . . . . . . . . . . . . . . . . . 1 . . . . . Route ------- -11/Scrapyard -10/Materials -10/Mines -10/Exiles -9/Mines -8/Materials -7/Factory -7/DSF -6/Factory (discovered 2 exits: *Low x2) -6/Lower Caves -6/Lower Caves (discovered 2 exits: *Fac / *Zio) -6/Zion -5/Proximity Caves -5/Factory (discovered 2 exits: *Upp / Ext) -5/Upper Caves -5/Upper Caves -5/Warlord -4/Proximity Caves -4/Factory (discovered 2 exits: *Upp x2) -4/Upper Caves -4/Upper Caves -4/Zhirov -3/Proximity Caves -3/Research (discovered 3 exits: Res / Tes / DSF) -3/DSF -2/Research -1/Access (discovered 2 exits: Sur / *Com) -1/Command (discovered 2 exits: *Sur x2) History --------- Turn | Location | Event 3 | -11/Scrapyard | Discovered new exit (range 0) 3 | -11/Scrapyard | Entered Materials 104 | -10/Materials | Met 8R-AWN 186 | -10/Materials | Discovered new exit (range 8) 194 | -10/Materials | Entered Mines 197 | -10/Mines | Followed 8R-AWN into the Mines 236 | -10/Mines | Learned Materials garrison access intel 253 | -10/Mines | Discovered new exit (range 5) 258 | -10/Mines | Entered Exiles 287 | -10/Exiles | Welcomed by 8R-AWN 308 | -10/Exiles | Met EX-HEX 316 | -10/Exiles | Build established: Mutant 344 | -10/Exiles | Met EX-BIN 357 | -10/Exiles | Aligned with FarCom system 358 | -10/Exiles | Given EX-Vault access code 387 | -10/Exiles | Opened EX-Vault 442 | -10/Exiles | Found Modified TNC 468 | -10/Exiles | Warned to stay clear of 0b10 Research branches 502 | -10/Exiles | Met EX-DEC 612 | -10/Exiles | Discovered new exit (range 14) 826 | -10/Exiles | Left Exiles lab with Modified TNC 826 | -10/Exiles | Entered Mines 924 | -9/Mines | Met a Derelict who couldn't figure out how to use a Trap Extractor 1134 | -9/Mines | Assembled infested the area 1139 | -9/Mines | Assisted by a Guerilla fighting off Assembled 1249 | -9/Mines | Discovered new exit (range 14) 1264 | -9/Mines | Entered Materials 1264 | -8/Materials | Evolved 4 slots: Propulsion x1, Utility x2, Weapon x1 1570 | -8/Materials | Build established: Skirmisher 1591 | -8/Materials | Discovered new exit (range 5) 2068 | -8/Materials | Released all parts (6) 2092 | -8/Materials | Core integrity fell below 50% 2099 | -8/Materials | Lost 5 parts (2n3w) 2129 | -8/Materials | Entered Factory 2129 | -7/Factory | Evolved 2 slots: Propulsion x1, Utility x1 2177 | -7/Factory | Identified exit to DSF 2177 | -7/Factory | Entered DSF 2201 | -7/DSF | Additional patrols routed to DSF 2213 | -7/DSF | Discovered new exit (range 15) 2233 | -7/DSF | Entered Factory 2233 | -6/Factory | Evolved 2 slots: Utility x2 2392 | -6/Factory | Identified exit to Lower Caves 2462 | -6/Factory | Entered Lower Caves 2481 | -6/Lower Caves | Build established: Sprinter 2604 | -6/Lower Caves | Discovered new exit (range 15) 2635 | -6/Lower Caves | Identified exit to Lower Caves 2636 | -6/Lower Caves | Entered another Lower Caves area 2656 | -6/Lower Caves | Discovered new exit (range 9) 2658 | -6/Lower Caves | Identified exit to Factory 2719 | -6/Lower Caves | Encountered a Warlord checkpoint 2722 | -6/Lower Caves | Learned 8 Factory zone layouts 2768 | -6/Lower Caves | Found DRS Beacon 2815 | -6/Lower Caves | Discovered new exit (range 7) 2836 | -6/Lower Caves | Identified exit to Zion 2837 | -6/Lower Caves | Entered Zion 2864 | -6/Zion | Discovered new exit (range 12) 2867 | -6/Zion | Identified exit to Proximity Caves 2937 | -6/Zion | Learned Factory trap positions 2940 | -6/Zion | Build established: Ninja 3008 | -6/Zion | Found Prototype Hackware 3008 | -6/Zion | Identified Exp. System Shield 3018 | -6/Zion | Learned Factory emergency access door positions 3036 | -6/Zion | Rebuked by Imprinter 3081 | -6/Zion | Entered Proximity Caves 3117 | -5/Proximity Caves | Encountered a Derelict sapper outpost 3143 | -5/Proximity Caves | Spotter reported a threat 3179 | -5/Proximity Caves | Discovered exit to Factory (range 22) 3180 | -5/Proximity Caves | Learned Factory machine intel 3203 | -5/Proximity Caves | Spotter reported a threat 3204 | -5/Proximity Caves | Entered Factory 3204 | -5/Factory | Evolved 2 slots: Utility x2 3205 | -5/Factory | Identified exit to Extension 3206 | -5/Factory | Identified exit to Upper Caves 3207 | -5/Factory | Loaded intel: 93 trap records 3209 | -5/Factory | Loaded intel: 234 machine locations 3237 | -5/Factory | Entered Upper Caves 3341 | -5/Upper Caves | Learned Factory security intel 3396 | -5/Upper Caves | Discovered new exit (range 5) 3400 | -5/Upper Caves | Identified exit to Upper Caves 3400 | -5/Upper Caves | Entered another Upper Caves area 3464 | -5/Upper Caves | Learned Factory emergency access door positions 3478 | -5/Upper Caves | Identified exit to Warlord 3559 | -5/Upper Caves | Build established: Hacker-Ninja 3620 | -5/Upper Caves | Crushed by falling debris 3650 | -5/Upper Caves | Entered Warlord 3668 | -5/Warlord | Learned Research security intel 3668 | -5/Warlord | Learned Research repair station intel 3668 | -5/Warlord | Learned 4 Armory zone layouts 3669 | -5/Warlord | Learned Quarantine emergency access door positions 3719 | -5/Warlord | Found Prototype Special Weapon 3719 | -5/Warlord | Identified RU-N14's Throwing Claymores v3 3734 | -5/Warlord | Met Warlord 3749 | -5/Warlord | Visited the Vortex Lab 3751 | -5/Warlord | Warlord's base attacked by MAIN.C 3751 | -5/Warlord | Found Prototype Energy Gun 3751 | -5/Warlord | Identified Vortex Rail 3754 | -5/Warlord | Found Prototype Energy Gun 3754 | -5/Warlord | Identified Vortex Shotgun 3783 | -5/Warlord | Opened side exit 3849 | -5/Warlord | Discovered new exit (range 11) 3851 | -5/Warlord | Entered Proximity Caves 3872 | -4/Proximity Caves | Spotter reported a threat 4032 | -4/Proximity Caves | Spotter reported a threat 4040 | -4/Proximity Caves | Discovered new exit (range 7) 4041 | -4/Proximity Caves | Identified exit to Factory 4042 | -4/Proximity Caves | Entered Factory 4042 | -4/Factory | Evolved 2 slots: Propulsion x2 4056 | -4/Factory | Identified exit to Upper Caves 4257 | -4/Factory | Entered Upper Caves 4261 | -4/Upper Caves | Found DCF Scrap (12 items) 4293 | -4/Upper Caves | Found Alien Artifact 4293 | -4/Upper Caves | Identified Core Expander 4293 | -4/Upper Caves | Installed Core Expander, added new Propulsion slot 4379 | -4/Upper Caves | Discovered new exit (range 16) 4380 | -4/Upper Caves | Learned location of 1 exit from Research 4383 | -4/Upper Caves | Identified exit to Upper Caves 4384 | -4/Upper Caves | Entered another Upper Caves area 4402 | -4/Upper Caves | Encountered a Warlord checkpoint 4415 | -4/Upper Caves | Acquired the password to a Derelict Tinkerer's latest research 4416 | -4/Upper Caves | Found Prototype Special Weapon 4416 | -4/Upper Caves | Identified Molecular Deconstructor 4549 | -4/Upper Caves | Discovered new exit (range 10) 4555 | -4/Upper Caves | Identified exit to Zhirov 4561 | -4/Upper Caves | Entered Zhirov 4561 | -4/Zhirov | Discovered new exit (range 3) 4567 | -4/Zhirov | Met Zhirov 4572 | -4/Zhirov | Learned location of Quarantine (-2) 4572 | -4/Zhirov | Learned location of Testing (-3) 4572 | -4/Zhirov | Learned location of Command (-1) 4574 | -4/Zhirov | Zhirov requested help retrieving the SGEMP Prototype 4579 | -4/Zhirov | Found Alien Artifact 4579 | -4/Zhirov | Identified Integrated Dissipator 4579 | -4/Zhirov | Installed Integrated Dissipator, increased core heat dissipation (+20) 4586 | -4/Zhirov | Found Alien Artifact 4662 | -4/Zhirov | Identified exit to Proximity Caves 4663 | -4/Zhirov | Entered Proximity Caves 4668 | -3/Proximity Caves | Activated DRS Beacon 4864 | -3/Proximity Caves | Attracted the attention of an 0b10 checkpoint 4889 | -3/Proximity Caves | Spotted B-86 Titan 5042 | -3/Proximity Caves | Discovered new exit (range 14) 5044 | -3/Proximity Caves | Identified exit to Research 5044 | -3/Proximity Caves | Entered Research 5044 | -3/Research | Evolved 2 slots: Power x1, Utility x1 5045 | -3/Research | Identified exit to Testing 5046 | -3/Research | Identified exit to Research 5048 | -3/Research | Loaded intel: 4 repair station locations 5089 | -3/Research | Identified exit to DSF 5090 | -3/Research | Entered DSF 5109 | -3/DSF | Additional patrols routed to DSF 5142 | -3/DSF | Discovered exit to Research (range 21) 5147 | -3/DSF | Entered Research 5147 | -2/Research | Warlord forces began assault on 0b10 5147 | -2/Research | Evolved 2 slots: Utility x2 5257 | -2/Research | Research machine network offline 5287 | -2/Research | Found Prototype Device 5287 | -2/Research | Identified Exp. Thermal Shield 5300 | -2/Research | Met up with Warlord 5361 | -2/Research | Discovered new exit (range 15) 5364 | -2/Research | Identified exit to Access 5397 | -2/Research | Entered Access 5397 | -1/Access | Evolved 2 slots: Utility x2 5415 | -1/Access | Identified exit to Command 5434 | -1/Access | Identified exit to Surface 5465 | -1/Access | Entered Command 5585 | -1/Command | Disengaged cave seal 5585 | -1/Command | Derelicts emerged from the dark tunnel 5585 | -1/Command | Welcomed Warlord to Command 5745 | -1/Command | Phase Generator disabled 5821 | -1/Command | Spotted Alpha 7 5821 | -1/Command | Spotted Alpha 7 5821 | -1/Command | Spotted Striker 5821 | -1/Command | Spotted Striker 5821 | -1/Command | Spotted Executioner 5821 | -1/Command | Spotted Executioner 5821 | -1/Command | Spotted Executioner 5821 | -1/Command | Spotted Executioner 5825 | -1/Command | Spotted B-99 Colossus 5828 | -1/Command | Spotted B-99 Colossus 5836 | -1/Command | Core integrity fell below 50% 5839 | -1/Command | Core integrity fell below 20% 5842 | -1/Command | Destroyed by B-99 Colossus with Multirail Last Messages --------------- 05838_ Slug penetrates B-99 Colossus. 05838_ K-01 Serf collects debris. 05840_ Field strength at 48. 05840_ Triggered Stasis Trap. 05840_ A bubble of rippling energy engulfs the area. 05840_ Field strength at 94. 05840_ Penetrated by Slug. 05840_ Slug penetrates Wall. 05840_ Field strength at 79. 05840_ Slug penetrates Striker. 05841_ Field strength at 36. 05841_ Slug penetrates B-99 Colossus. 05841_ Adv. Hacking Suite destroyed. 05841_ Penetrated by Slug. 05841_ Field strength at 38. 05842_ K-01 Serf collects debris. 05842_ Field strength at 28. 05842_ Knocked back. 05842_ Penetrated by Slug. Map ----- +----------------------------------------------------+ | """" #??# # # "" # # | | """" #??# # # "" # # | | "" #### # #! "T # # | | # "" # "" # + | | # """" # "" # # | | + """" + # # | | # "" # # ###### | | + ####+#### ###### | | ##^^ ##### # #??# #??# #=! | | ?# #???# # #??# #??# #! | | ?# ^ #???# + #??# #### # | | ?#^ #???# #####+##+##+##### # | | ?# #???# + | | ?##### #???# #+##+############ #### | | ?????# #???# # #???????#####??###### | | ?????# #???# + #???????????????????? | | ?????# #???########### #???????????????????? | | ?????# #?????????????# * [#???????????????????? | | ?????# #?????????????# #???????????????????? | | ?????# #?????????????#########???????????????????? | | ?????# ####?????????????????##???????????????????? | | ?????# #???????????######;#######?????????????? | | ?????# #??????###?##BB #?????????????? | | ?????# #???#### ###;BB #?????????????? | | ?????# #?### # # # ; ^ #?????????????? | | ###+## ### E @ % #?????????????? | | [ ; ^7 E%% K^ #?????????????? | | ; ^^ [%^^% ^ "< ^ #?????????????? | | + ^ ^ ^[%^K% % "" #?????????????? | | + !=%^!^ ^ % #?????????????? | | "" ##^ ^E%7^ #?????????????? | | T" ###; ;%#!; % k #????????????## | | """ #?#########;BB% #????????????# | | "" #?????????##BB #????????????# | | #??????????##############????????????# | | #????????????????????????????????????# | | #????????????????????????????????????# | | ????????????????????????????????????#" | | ????????????????????????????????????#" | | ????????????????????????????????????#" | | ### ????????????????????????????????????#" | | ??##+##### #???????????????????????????????????#" | | ?????????? #???????????????????????????????????#" | | ?????????? #???????????????????????????????????#" | | ?????????? #???????????????????????????????????#" | | ?????????? #???????????????????????????????????#" | | ?????????? #???????????????????????????????????#" | | ?????????? ????????????????????????????????????#" | | ?????????? ????????????????????????????????????# | | ?????????? ????????????????????????????????????# | +----------------------------------------------------+ Best States ------------- Heat Dissipation 72 Energy Generation 66 Energy Capacity 450 Matter Stores 300 Matter Capacity 300 Sight Range 23 Robot Scan Range 16 Terrain Scan Density 10 ECM Strength 2 Jamming Range 14 Power Amplification 80 Additional Mass Support 12 Propulsion Shielding 33 Evasion (%) 77 Melee Accuracy 5 Recoil Reduction 2 Offensive Hacking 64 Defensive Hacking 16 Item Schematics ----------------- Battle Cannon | -6/Zion | Free Beamcaster | -6/Zion | Free Slug Cannon | -6/Zion | Free Imp. Weapon Cycler | -6/Zion | Archive Matter Compressor | -6/Zion | Archive Adv. Cryofiber Web | -6/Zion | Archive Adv. Transmission Jammer | -6/Zion | Archive Proton Cannon | -6/Zion | Archive Imp. Thermal Shield | -6/Zion | Archive Adv. Sensor Array | -6/Zion | Archive Power Amplifier | -6/Zion | Archive Remote Shield | -6/Zion | Archive Neutrino Core | -6/Zion | Archive Phase Cannon | -6/Zion | Archive Adv. Drone Bay | -6/Zion | Archive Assault Drone Bay | -4/Zhirov | Free Exp. Heat Sink | -4/Zhirov | Free Exp. Optical Array | -4/Zhirov | Free Imp. Arc Thrower | -4/Zhirov | Free Robot Schematics ------------------ L-41 Fighter | -6/Zion | Archive K-01 Serf | -6/Zion | Archive A-02 Transporter | -6/Zion | Archive H-88 Terminator | -6/Zion | Archive B-48 Gladiator | -5/Factory | Hacked Fabricated ------------ Nothing Alien Tech Used ----------------- Core Expander Integrated Dissipator Achievements -------------- None Challenges ------------ None Game ------ Seed SpectralResetDoomcannon Manual? 0 Play Time 02:10:02 Cumulative 208.4 hours Start 2025.03.19 @ 19:30:47 End 2025.03.19 @ 21:54:07 Sessions 1 Manual Loads 0 Difficulty Rogue Special Mode None Game No. 149 Rogue 149 Adventurer 0 Explorer 0 Win Type - Total 12 Types 11/0/0/1/0/0/0/0/0 Lore% 81 Gallery% 70 Achievement% 57 Wizard Run 0 Options --------- Layout 2 ASCII 1 Keyboard 1 Movement Arrows Keybinds 0 Fullscreen 1 Font 24/Proggy Map View 50x44 Zoom Use 0% Tactical HUD 1 Map Filters NONE Filters NONE Steam 1 RUN: e6227352-4efb-413c-9bbc-11d2f35442c7